bitfinex/quotes_SOLUSD_20241110
["timestamp","ask_amount","ask_price","bid_price","bid_amount"]
[1731216939160,6.4836,207.22,207.05,0.1]
[1731216939161,32.62980234,207.13,207.05,32.62980234]
[1731216939577,32.62980234,207.13,207.06,32.62980234]
[1731216940278,32.62980234,207.14,207.06,32.62980234]
[1731216940675,32.62980234,207.13,207.04,32.62980234]
[1731216940872,32.62980234,207.14,207.06,32.62980234]
[1731216941170,32.62980234,207.13,207.06,32.62980234]
[1731216941566,32.62980234,207.13,207.05,32.62980234]
[1731216942564,32.62980234,207.13,207.06,4.814]
[1731216942967,32.62980234,207.15,207.07,32.62980234]
[1731216943175,32.62980234,207.17,207.09,32.62980234]
[1731216943582,32.62980234,207.17,207.1,21.2681]
[1731216943789,32.62980234,207.17,207.1,16.4541]
[1731216944482,32.62980234,207.19,207.11,32.62980234]
[1731216944692,17.60704267,207.55,207.29,0.1]
[1731216944987,24.51009475,207.59,207.2,24.6800164]
[1731216944988,32.72980234,207.59,207.5,32.62980234]
[1731216945172,0.1,207.63,207.52,32.62980234]
[1731216945173,32.72980234,207.61,207.52,32.62980234]
[1731216945374,32.72980234,207.63,207.54,32.62980234]
[1731216945883,32.62980234,207.63,207.54,32.62980234]
[1731216946064,0.1,207.65,207.44,17.73951713]
[1731216946065,32.72980234,207.65,207.56,32.62980234]
[1731216946271,32.62980234,207.65,207.56,32.62980234]
[1731216946466,32.72980234,207.63,207.55,4.814]
[1731216946664,32.62980234,207.59,207.51,32.62980234]
[1731216947273,0.1,207.59,207.51,32.62980234]
[1731216947491,32.62980234,207.6,207.53,32.62980234]
[1731216947783,32.62980234,207.62,207.53,32.62980234]
[1731216947993,32.62980234,207.62,207.55,32.62980234]
[1731216948578,32.62980234,207.64,207.55,32.62980234]
[1731216948788,0.1,207.63,207.55,32.62980234]
[1731216949100,32.62980234,207.64,207.55,32.62980234]
[1731216949101,32.72980234,207.64,207.55,32.62980234]
[1731216949472,0.1,207.62,207.55,32.62980234]
[1731216949665,0.1,207.65,207.58,32.62980234]
[1731216949865,39.02290234,207.68,207.58,32.62980234]
[1731216950073,39.02290234,207.68,207.6,32.62980234]
[1731216950275,32.62980234,207.62,207.53,32.62980234]
[1731216950484,32.62980234,207.58,207.51,32.62980234]
[1731216950894,32.62980234,207.58,207.49,32.62980234]
[1731216953197,32.62980234,207.56,207.47,32.62980234]
[1731216953372,32.62980234,207.53,207.45,32.62980234]
[1731216953579,32.62980234,207.55,207.47,32.62980234]
[1731216953878,32.62980234,207.57,207.49,32.62980234]
[1731216955791,32.62980234,207.57,207.51,32.62980234]
[1731216955973,32.62980234,207.59,207.51,32.62980234]
[1731216956689,32.62980234,207.61,207.53,32.62980234]
[1731216957576,32.62980234,207.63,207.55,32.62980234]
[1731216957791,6.3931,207.68,207.5,32.72980234]
[1731216957792,32.62980234,207.65,207.57,32.62980234]
[1731216958370,32.62980234,207.63,207.55,32.62980234]
[1731216959377,32.62980234,207.6,207.53,32.62980234]
[1731216959772,6.3931,207.68,207.49,3.22438874]
[1731216959773,32.62980234,207.62,207.54,32.62980234]
[1731216960274,32.62980234,207.61,207.54,32.62980234]
[1731216960478,32.62980234,207.6,207.53,32.62980234]
[1731216961089,32.62980234,207.61,207.54,32.62980234]
[1731216962380,32.62980234,207.62,207.54,32.62980234]
[1731216962609,32.62980234,207.62,207.55,4.814]
[1731216962780,32.62980234,207.62,207.49,3.12438874]
[1731216962781,32.62980234,207.64,207.57,4.814]
[1731216963120,32.62980234,207.64,207.57,37.44380234]
[1731216964597,32.62980234,207.62,207.58,4.814]
[1731216964782,32.62980234,207.63,207.58,4.814]
[1731216965194,6.3931,207.68,207.58,4.814]
[1731216965500,32.62980234,207.64,207.57,4.814]
[1731216966992,32.62980234,207.64,207.59,4.814]
[1731216967203,32.62980234,207.66,207.59,4.814]
[1731216968493,32.62980234,207.66,207.61,0.1]
[1731216968696,6.2504,207.74,207.61,0.1]
[1731216968697,32.62980234,207.68,207.61,4.914]
[1731216969001,32.62980234,207.68,207.61,5.014]
[1731216970490,32.62980234,207.68,207.61,4.914]
[1731216970794,32.62980234,207.64,207.62,4.814]
[1731216971605,32.62980234,207.64,207.63,4.814]
[1731216971789,32.62980234,207.65,207.63,4.814]
[1731216972207,32.62980234,207.64,207.63,4.814]
[1731216972423,32.62980234,207.64,207.56,32.82980234]
[1731216972706,32.62980234,207.64,207.59,0.1]
[1731216972901,32.62980234,207.64,207.58,0.1]
[1731216973113,32.62980234,207.64,207.59,0.1]
[1731216973308,32.62980234,207.66,207.59,0.1]
[1731216973492,32.62980234,207.65,207.59,0.1]
[1731216974511,32.62980234,207.67,207.6,0.1]
[1731216974709,32.62980234,207.67,207.58,37.64380234]
[1731216975014,32.62980234,207.66,207.58,40.65702357]
[1731216975606,32.62980234,207.68,207.6,37.44380234]
[1731216975795,32.62980234,207.67,207.6,4.814]
[1731216976004,32.62980234,207.67,207.6,37.44380234]
[1731216976189,32.62980234,207.65,207.6,4.814]
[1731216976502,32.62980234,207.62,207.56,4.814]
[1731216976810,32.62980234,207.62,207.56,4.914]
[1731216976995,32.62980234,207.63,207.56,37.54380234]
[1731216977190,32.62980234,207.62,207.56,7.84357933]
[1731216977385,6.2504,207.74,207.61,37.44380234]
[1731216977591,32.62980234,207.7,207.63,4.814]
[1731216977884,32.62980234,207.69,207.63,4.814]
[1731216978506,32.62980234,207.69,207.61,4.814]
[1731216979008,32.62980234,207.69,207.61,4.914]
[1731216980105,32.62980234,207.71,207.63,4.914]
[1731216980493,6.2504,207.74,207.63,4.914]
[1731216980494,32.62980234,207.69,207.63,4.814]
[1731216980707,32.62980234,207.65,207.58,48.41660234]
[1731216981295,32.62980234,207.65,207.59,4.814]
[1731216983908,32.62980234,207.63,207.6,4.814]
[1731216984208,32.62980234,207.61,207.6,4.814]
[1731216984801,32.62980234,207.61,207.53,4.814]
[1731216985122,32.62980234,207.64,207.57,4.814]
[1731216985491,32.62980234,207.63,207.57,4.814]
[1731216985695,32.62980234,207.64,207.57,37.44380234]
[1731216986110,32.62980234,207.63,207.56,4.814]
[1731216986515,32.62980234,207.61,207.56,4.814]
[1731216986705,32.62980234,207.6,207.56,4.814]
[1731216987013,32.62980234,207.59,207.56,4.814]
[1731216987194,32.62980234,207.57,207.53,4.814]
[1731216987396,32.62980234,207.56,207.53,4.814]
[1731216987702,32.62980234,207.57,207.53,4.814]
[1731216988312,32.62980234,207.55,207.5,4.814]
[1731216988522,32.62980234,207.56,207.5,4.814]
[1731216989796,32.62980234,207.58,207.52,4.814]
[1731216990628,32.62980234,207.62,207.56,4.814]
[1731216991708,32.62980234,207.62,207.54,4.814]
[1731216992900,32.62980234,207.62,207.53,32.62980234]
[1731216992901,32.62980234,207.64,207.56,4.814]
[1731216993921,32.62980234,207.58,207.54,4.814]
[1731216994123,32.62980234,207.56,207.52,4.814]
[1731216995001,0.1,207.68,207.5,4.814]
[1731216995002,32.62980234,207.58,207.5,4.814]
[1731216995510,32.62980234,207.58,207.52,4.814]
[1731216995814,32.62980234,207.58,207.46,19.28914397]
[1731216996006,32.62980234,207.54,207.47,37.44380234]
[1731216996717,32.62980234,207.52,207.47,4.814]
[1731216997112,32.62980234,207.48,207.44,4.814]
[1731216998002,32.62980234,207.5,207.45,4.814]
[1731216998925,32.62980234,207.52,207.45,37.44380234]
[1731217000924,32.62980234,207.52,207.45,4.814]
[1731217001734,32.62980234,207.51,207.45,4.814]
[1731217001909,32.62980234,207.53,207.45,4.814]
[1731217003530,32.62980234,207.5,207.46,4.814]
[1731217004014,32.62980234,207.52,207.46,4.814]
[1731217004735,32.62980234,207.52,207.45,4.814]
[1731217006433,32.62980234,207.54,207.47,4.814]
[1731217006639,32.62980234,207.56,207.49,4.814]
[1731217006930,32.62980234,207.58,207.51,4.814]
[1731217010041,32.62980234,207.56,207.52,4.814]
[1731217010332,32.62980234,207.54,207.52,4.814]
[1731217011128,32.62980234,207.54,207.49,4.814]
[1731217011633,32.62980234,207.54,207.49,4.914]
[1731217011824,32.62980234,207.58,207.51,4.814]
[1731217014915,32.62980234,207.56,207.51,4.814]
[1731217015236,32.62980234,207.54,207.49,4.814]
[1731217016040,32.62980234,207.54,207.47,32.62980234]
[1731217016041,32.62980234,207.54,207.48,4.814]
[1731217016334,32.62980234,207.55,207.48,4.814]
[1731217016540,32.62980234,207.54,207.48,4.814]
[1731217017024,32.62980234,207.53,207.47,4.814]
[1731217017230,32.62980234,207.52,207.47,4.814]
[1731217017421,32.62980234,207.51,207.47,4.814]
[1731217017747,6.6431,207.64,207.54,0.1]
[1731217018035,32.62980234,207.61,207.52,0.1]
[1731217018237,6.6431,207.64,207.51,4.814]
[1731217018238,32.62980234,207.59,207.51,32.62980234]
[1731217018412,32.62980234,207.57,207.52,4.814]
[1731217019314,6.6431,207.64,207.51,37.44380234]
[1731217019315,32.62980234,207.59,207.51,37.44380234]
[1731217019514,32.62980234,207.61,207.54,4.814]
[1731217020438,16.3388,207.69,207.58,4.814]
[1731217020639,32.62980234,207.68,207.6,4.814]
[1731217020956,32.62980234,207.72,207.66,4.814]
[1731217021321,32.62980234,207.71,207.66,4.814]
[1731217021829,32.62980234,207.71,207.64,4.814]
[1731217022342,32.62980234,207.7,207.64,4.814]
[1731217022524,32.62980234,207.7,207.63,32.62980234]
[1731217022729,32.62980234,207.68,207.6,35.7427385]
[1731217022925,6.0869,207.76,207.6,35.7427385]
[1731217022926,32.62980234,207.67,207.6,3.11293616]
[1731217023229,32.62980234,207.67,207.59,34.15810234]
[1731217023529,32.62980234,207.66,207.59,34.15810234]
[1731217024523,32.62980234,207.66,207.59,1.5283]
[1731217024926,32.62980234,207.66,207.59,34.15810234]
[1731217027040,32.62980234,207.65,207.57,32.62980234]
[1731217027545,32.62980234,207.67,207.59,32.62980234]
[1731217027838,32.62980234,207.69,207.61,32.62980234]
[1731217028023,32.62980234,207.71,207.63,32.62980234]
[1731217028540,32.62980234,207.69,207.61,32.72980234]
[1731217028725,32.62980234,207.7,207.62,32.62980234]
[1731217029043,32.62980234,207.7,207.61,0.1]
[1731217029044,32.62980234,207.68,207.6,32.62980234]
[1731217029227,32.62980234,207.66,207.6,32.62980234]
[1731217029431,32.62980234,207.66,207.56,0.1]
[1731217029432,32.62980234,207.66,207.58,32.62980234]
[1731217030141,0.1,207.75,207.58,32.62980234]
[1731217030321,32.62980234,207.66,207.58,32.62980234]
[1731217031132,32.62980234,207.62,207.56,3.00908689]
[1731217031320,32.62980234,207.62,207.55,32.62980234]
[1731217031735,32.62980234,207.7,207.54,15.9905]
[1731217031736,32.62980234,207.61,207.54,48.62030234]
[1731217031943,32.62980234,207.62,207.54,48.62030234]
[1731217032124,32.62980234,207.62,207.54,32.62980234]
[1731217032330,32.62980234,207.59,207.51,32.62980234]
[1731217032534,15.2323,207.66,207.57,37.44380234]
[1731217032734,32.62980234,207.64,207.57,37.44380234]
[1731217032942,32.62980234,207.62,207.57,4.814]
[1731217033521,32.62980234,207.62,207.54,4.814]
[1731217034848,32.62980234,207.62,207.56,4.814]
[1731217036849,32.62980234,207.6,207.56,4.814]
[1731217038236,32.62980234,207.58,207.52,4.814]
[1731217038435,32.62980234,207.6,207.52,4.814]
[1731217039738,32.62980234,207.6,207.52,4.914]
[1731217039940,32.62980234,207.6,207.52,4.814]
[1731217040142,32.62980234,207.58,207.52,4.814]
[1731217040447,32.62980234,207.56,207.5,4.814]
[1731217043642,32.62980234,207.56,207.51,0.1]
[1731217044245,6.0869,207.68,207.52,4.814]
[1731217044246,32.62980234,207.58,207.52,4.814]
[1731217044869,32.62980234,207.53,207.35,15.2887]
[1731217045151,32.62980234,207.45,207.38,32.62980234]
[1731217045338,35.65475619,207.57,207.35,15.3887]
[1731217045339,32.62980234,207.47,207.4,32.62980234]
[1731217045540,32.62980234,207.45,207.38,32.62980234]
[1731217045844,32.62980234,207.45,207.37,4.814]
[1731217046047,32.62980234,207.43,207.35,15.2887]
[1731217046347,32.62980234,207.43,207.33,1.5283]
[1731217046348,32.62980234,207.39,207.32,35.76034794]
[1731217046540,32.62980234,207.39,207.3,47.91850234]
[1731217046738,32.62980234,207.37,207.3,15.2887]
[1731217047064,32.62980234,207.35,207.3,4.814]
[1731217047262,32.62980234,207.34,207.26,32.62980234]
[1731217047555,32.62980234,207.32,207.25,15.2887]
[1731217047845,32.62980234,207.31,207.25,3.09463288]
[1731217048155,32.62980234,207.31,207.24,32.62980234]
[1731217048858,32.62980234,207.37,207.29,32.62980234]
[1731217049352,32.62980234,207.36,207.28,32.62980234]
[1731217050532,6.2331,207.45,207.3,32.62980234]
[1731217050749,32.62980234,207.41,207.33,32.62980234]
[1731217052456,32.62980234,207.39,207.31,32.62980234]
[1731217052641,32.62980234,207.41,207.34,32.62980234]
[1731217053356,32.62980234,207.39,207.31,32.62980234]
[1731217053656,32.62980234,207.43,207.35,32.62980234]
[1731217054057,6.2331,207.45,207.31,0.1]
[1731217054058,32.62980234,207.41,207.33,32.62980234]
[1731217055156,32.62980234,207.4,207.32,32.62980234]
[1731217055333,32.62980234,207.39,207.31,32.72980234]
[1731217055534,32.62980234,207.41,207.33,32.62980234]
[1731217055745,32.62980234,207.4,207.33,32.62980234]
[1731217056348,32.62980234,207.4,207.32,32.62980234]
[1731217056551,32.62980234,207.41,207.34,32.62980234]
[1731217056962,32.62980234,207.39,207.32,32.62980234]
[1731217057344,32.62980234,207.38,207.3,48.01850234]
[1731217057549,32.62980234,207.39,207.32,32.62980234]
[1731217058150,32.62980234,207.38,207.31,32.62980234]
[1731217058362,32.62980234,207.38,207.3,51.053757]
[1731217058558,6.2331,207.45,207.3,18.42395466]
[1731217058743,32.62980234,207.37,207.3,18.42395466]
[1731217058943,32.62980234,207.38,207.31,32.62980234]
[1731217059351,32.62980234,207.36,207.3,18.42395466]
[1731217059552,32.62980234,207.37,207.3,51.053757]
[1731217059959,32.62980234,207.37,207.3,18.42395466]
[1731217060688,32.62980234,207.39,207.31,32.62980234]
[1731217060853,32.62980234,207.41,207.33,32.62980234]
[1731217061170,32.62980234,207.44,207.37,32.62980234]
[1731217061476,32.62980234,207.46,207.39,32.62980234]
[1731217061664,32.62980234,207.47,207.4,32.62980234]
[1731217062050,32.62980234,207.48,207.41,32.62980234]
[1731217062350,32.62980234,207.47,207.4,32.62980234]
[1731217062558,32.62980234,207.48,207.41,32.62980234]
[1731217062749,32.62980234,207.47,207.4,32.62980234]
[1731217063363,32.62980234,207.47,207.39,32.62980234]
[1731217063565,32.62980234,207.48,207.39,32.62980234]
[1731217063752,6.5371,207.67,207.47,32.62980234]
[1731217063956,6.5371,207.67,207.5,32.62980234]
[1731217063957,32.62980234,207.59,207.5,32.62980234]
[1731217064270,32.62980234,207.59,207.52,32.62980234]
[1731217065068,32.62980234,207.57,207.5,32.62980234]
[1731217065470,32.62980234,207.55,207.46,32.62980234]
[1731217065658,32.62980234,207.55,207.43,16.6031]
[1731217065659,32.62980234,207.53,207.44,32.62980234]
[1731217066051,32.62980234,207.53,207.46,32.62980234]
[1731217066250,32.62980234,207.55,207.48,32.62980234]
[1731217066671,6.4371,207.56,207.48,32.62980234]
[1731217066854,32.62980234,207.57,207.5,32.62980234]
[1731217067569,32.62980234,207.57,207.45,0.1]
[1731217067570,32.62980234,207.57,207.49,4.814]
[1731217069057,32.62980234,207.53,207.47,4.814]
[1731217069576,32.62980234,207.55,207.47,4.814]
[1731217069868,32.62980234,207.53,207.47,4.814]
[1731217070354,32.62980234,207.53,207.48,4.814]
[1731217071350,32.62980234,207.53,207.43,19.64935463]
[1731217071351,32.62980234,207.53,207.45,4.814]
[1731217071553,32.62980234,207.53,207.47,4.814]
[1731217071867,32.62980234,207.55,207.49,4.814]
[1731217072069,32.62980234,207.57,207.51,4.814]
[1731217072664,32.62980234,207.59,207.51,4.814]
[1731217073173,32.62980234,207.59,207.53,4.814]
[1731217074262,32.62980234,207.57,207.51,4.814]
[1731217075174,32.62980234,207.57,207.49,4.814]
[1731217075471,32.62980234,207.55,207.49,4.814]
[1731217075656,32.62980234,207.57,207.49,4.814]
[1731217076474,32.62980234,207.55,207.49,4.814]
[1731217076769,32.62980234,207.55,207.5,4.814]
[1731217076976,32.62980234,207.53,207.47,4.814]
[1731217077355,32.62980234,207.54,207.47,4.814]
[1731217077579,32.62980234,207.55,207.49,4.814]
[1731217078073,32.62980234,207.54,207.49,4.814]
[1731217078470,32.62980234,207.55,207.49,4.814]
[1731217078869,32.62980234,207.57,207.5,37.44380234]
[1731217079479,32.62980234,207.55,207.5,4.814]
[1731217079860,32.62980234,207.55,207.49,4.814]
[1731217080371,32.62980234,207.53,207.49,4.814]
[1731217080576,32.62980234,207.54,207.49,4.814]
[1731217080764,32.62980234,207.56,207.49,4.814]
[1731217080959,32.62980234,207.55,207.49,4.814]
[1731217081573,32.62980234,207.57,207.49,37.44380234]
[1731217082582,32.62980234,207.56,207.49,37.44380234]
[1731217082765,32.62980234,207.55,207.49,4.814]
[1731217083274,31.70480234,207.55,207.49,4.814]
[1731217083472,31.70480234,207.55,207.48,4.814]
[1731217083664,31.70480234,207.55,207.48,7.87731232]
[1731217083864,32.62980234,207.6,207.48,7.87731232]
[1731217084067,32.62980234,207.51,207.48,7.87731232]
[1731217084270,32.62980234,207.49,207.48,4.814]
[1731217084575,32.62980234,207.49,207.44,7.89235414]
[1731217084779,32.62980234,207.47,207.44,4.814]
[1731217084969,32.62980234,207.48,207.44,4.814]
[1731217085280,6.4371,207.61,207.44,4.814]
[1731217085488,6.0221,207.66,207.59,4.814]
[1731217085703,32.62980234,207.68,207.61,4.814]
[1731217085860,6.0221,207.71,207.61,16.66564906]
[1731217086060,38.65190234,207.71,207.63,4.814]
[1731217086262,38.65190234,207.71,207.65,4.814]
[1731217086477,38.65190234,207.71,207.67,4.814]
[1731217086778,32.62980234,207.69,207.68,4.814]
[1731217087499,32.62980234,207.69,207.56,32.62980234]
[1731217087678,32.62980234,207.66,207.58,32.62980234]
[1731217087877,32.62980234,207.66,207.59,4.814]
[1731217088200,32.62980234,207.68,207.61,4.814]
[1731217088372,32.62980234,207.7,207.63,4.814]
[1731217089497,32.62980234,207.68,207.62,4.814]
[1731217089797,32.62980234,207.67,207.6,4.814]
[1731217090780,0.1,207.7,207.58,4.814]
[1731217090781,32.62980234,207.65,207.58,4.814]
[1731217090975,32.62980234,207.63,207.58,4.814]
[1731217091176,32.62980234,207.61,207.53,32.62980234]
[1731217092104,32.62980234,207.61,207.53,37.44380234]
[1731217092477,32.62980234,207.57,207.51,4.814]
[1731217093396,32.62980234,207.57,207.5,4.814]
[1731217093900,32.62980234,207.57,207.49,32.62980234]
[1731217093901,32.62980234,207.55,207.46,22.94787066]
[1731217094198,32.62980234,207.55,207.47,37.44380234]
[1731217094585,32.62980234,207.57,207.5,4.814]
[1731217095091,32.62980234,207.64,207.56,32.62980234]
[1731217095591,32.62980234,207.58,207.51,7.23097066]
[1731217095798,32.62980234,207.56,207.48,32.62980234]
[1731217095994,32.62980234,207.56,207.49,4.814]
[1731217096400,32.62980234,207.52,207.44,32.62980234]
[1731217096584,32.62980234,207.54,207.46,32.62980234]
[1731217096784,32.62980234,207.54,207.44,7.23097066]
[1731217096999,32.62980234,207.54,207.47,4.814]
[1731217097505,32.62980234,207.54,207.46,32.62980234]
[1731217097709,6.1734,207.57,207.5,32.62980234]
[1731217099303,6.1734,207.57,207.43,12.04497066]
[1731217099304,32.62980234,207.51,207.43,32.62980234]
[1731217099686,32.62980234,207.53,207.45,32.62980234]
[1731217100085,32.62980234,207.51,207.43,32.62980234]
[1731217101792,32.62980234,207.49,207.41,32.62980234]
[1731217102989,6.1734,207.57,207.38,10.36010362]
[1731217102990,32.62980234,207.51,207.43,32.62980234]
[1731217103598,0.1,207.56,207.42,7.23097066]
[1731217103599,32.62980234,207.52,207.46,32.62980234]
[1731217103903,32.62980234,207.52,207.44,32.62980234]
[1731217104607,0.1,207.53,207.4,32.62980234]
[1731217104904,0.1,207.53,207.38,32.62980234]
[1731217104905,32.62980234,207.47,207.38,32.62980234]
[1731217105109,32.62980234,207.45,207.38,32.62980234]
[1731217106011,6.4241,207.46,207.36,4.63510692]
[1731217106012,32.62980234,207.44,207.36,37.26490926]
[1731217106504,32.62980234,207.44,207.37,32.62980234]
[1731217106710,32.62980234,207.44,207.35,39.860773]
[1731217107009,32.62980234,207.42,207.35,42.89865111]
[1731217107615,32.62980234,207.44,207.36,37.44380234]
[1731217108101,6.4241,207.46,207.39,4.814]
[1731217108302,39.05390234,207.46,207.39,37.44380234]
[1731217108510,39.05390234,207.46,207.39,4.814]
[1731217109493,32.62980234,207.44,207.38,4.814]
[1731217109692,32.62980234,207.44,207.38,37.44380234]
[1731217110602,39.05390234,207.46,207.38,37.44380234]
[1731217111499,32.62980234,207.44,207.38,37.44380234]
[1731217111696,39.05390234,207.46,207.38,37.44380234]
[1731217112295,32.62980234,207.44,207.38,4.814]
[1731217112704,32.62980234,207.44,207.37,4.814]
[1731217114510,32.62980234,207.42,207.36,4.814]
[1731217115305,32.62980234,207.39,207.37,4.814]
[1731217115502,6.4241,207.46,207.3,6.78258443]
[1731217115503,32.62980234,207.38,207.35,4.814]
[1731217115706,32.62980234,207.37,207.35,4.814]
[1731217115913,32.62980234,207.39,207.35,4.814]
[1731217116495,32.62980234,207.38,207.32,4.814]
[1731217116705,6.0574,207.59,207.37,1.5283]
[1731217116905,6.0574,207.59,207.46,0.1]
[1731217117119,32.62980234,207.57,207.5,0.1]
[1731217117417,32.62980234,207.57,207.51,8.56264554]
[1731217117716,6.0574,207.59,207.5,0.1]
[1731217117717,32.62980234,207.55,207.5,10.65831573]
[1731217118019,32.62980234,207.57,207.5,10.15831573]
[1731217118192,6.0574,207.59,207.51,32.72980234]
[1731217118817,6.0574,207.59,207.51,44.41043007]
[1731217119011,6.0574,207.59,207.52,12.68796106]
[1731217119419,32.62980234,207.58,207.52,12.68796106]
[1731217119901,32.62980234,207.55,207.52,12.68796106]
[1731217120109,32.62980234,207.53,207.45,32.62980234]
[1731217121415,32.62980234,207.51,207.43,40.63997855]
[1731217122715,32.62980234,207.49,207.41,32.62980234]
[1731217123016,32.62980234,207.47,207.39,32.62980234]
[1731217124312,6.191,207.48,207.39,32.62980234]
[1731217124894,32.62980234,207.47,207.39,32.62980234]
[1731217125210,32.62980234,207.45,207.37,32.62980234]
[1731217125716,32.62980234,207.47,207.37,32.62980234]
[1731217126992,32.62980234,207.45,207.37,32.62980234]
[1731217127917,6.191,207.48,207.37,32.62980234]
[1731217127918,32.62980234,207.47,207.4,0.1]
[1731217128606,32.62980234,207.47,207.39,32.62980234]
[1731217128809,32.62980234,207.45,207.37,39.84553411]
[1731217129004,32.62980234,207.45,207.36,0.1]
[1731217129410,32.62980234,207.45,207.37,32.72980234]
[1731217129802,32.62980234,207.47,207.39,32.62980234]
[1731217130203,12.35920309,207.46,207.39,32.72980234]
[1731217130398,6.191,207.48,207.41,32.62980234]
[1731217130804,6.191,207.48,207.42,0.1]
[1731217131110,6.191,207.48,207.43,32.62980234]
[1731217131916,6.191,207.54,207.43,32.62980234]
[1731217132109,32.62980234,207.52,207.43,32.62980234]
[1731217132504,6.191,207.54,207.45,32.62980234]
[1731217132711,38.82080234,207.54,207.45,32.62980234]
[1731217134200,38.82080234,207.54,207.47,0.1]
[1731217134405,38.82080234,207.54,207.47,32.72980234]
[1731217134813,6.191,207.54,207.49,32.62980234]
[1731217135401,32.62980234,207.6,207.53,32.62980234]
[1731217136700,32.62980234,207.58,207.51,32.62980234]
[1731217136922,39.22070234,207.61,207.53,32.62980234]
[1731217137121,32.62980234,207.59,207.51,32.62980234]
[1731217137506,32.62980234,207.59,207.52,4.814]
[1731217137919,32.62980234,207.55,207.48,4.814]
[1731217139304,32.62980234,207.55,207.5,4.814]
[1731217140022,32.62980234,207.57,207.5,4.814]
[1731217140246,32.62980234,207.57,207.46,0.1]
[1731217140247,32.62980234,207.51,207.46,4.814]
[1731217140524,32.62980234,207.5,207.46,4.814]
[1731217141308,32.62980234,207.52,207.46,4.814]
[1731217141509,32.62980234,207.52,207.44,32.72980234]
[1731217141510,32.62980234,207.54,207.49,4.814]
[1731217143402,32.62980234,207.54,207.45,7.21573177]
[1731217143403,32.62980234,207.54,207.46,37.44380234]
[1731217143919,32.62980234,207.52,207.46,4.814]
[1731217144516,32.62980234,207.52,207.45,4.814]
[1731217146211,47.69360234,207.46,207.37,0.1]
[1731217146527,32.62980234,207.38,207.33,0.1]
[1731217146822,32.62980234,207.42,207.38,0.1]
[1731217147023,32.62980234,207.44,207.38,0.1]
[1731217149331,32.62980234,207.46,207.4,0.1]
[1731217149931,32.62980234,207.48,207.41,4.81]
[1731217150310,32.62980234,207.48,207.43,0.1]
[1731217150512,32.62980234,207.48,207.43,4.91]
[1731217151726,32.62980234,207.48,207.43,0.1]
[1731217151919,32.62980234,207.48,207.4,4.81]
[1731217151920,32.62980234,207.46,207.41,0.1]
[1731217152513,32.62980234,207.42,207.39,0.1]
[1731217154035,32.62980234,207.42,207.37,0.1]
[1731217154325,32.62980234,207.4,207.37,0.1]
[1731217155435,32.62980234,207.38,207.37,0.1]
[1731217156409,32.62980234,207.39,207.37,0.1]
[1731217157325,32.62980234,207.43,207.37,4.91]
[1731217157644,32.62980234,207.42,207.37,4.91]
[1731217157814,32.62980234,207.43,207.37,4.91]
[1731217158016,32.62980234,207.43,207.37,4.81]
[1731217158229,32.62980234,207.42,207.38,4.81]
[1731217158429,32.62980234,207.42,207.34,32.72980234]
[1731217158746,32.62980234,207.42,207.35,37.43980234]
[1731217158945,32.62980234,207.43,207.37,4.81]
[1731217160018,32.62980234,207.43,207.36,4.81]
[1731217160412,32.62980234,207.44,207.38,4.81]
[1731217160626,32.62980234,207.47,207.4,37.43980234]
[1731217160934,32.62980234,207.42,207.38,0.1]
[1731217161140,32.62980234,207.44,207.38,4.81]
[1731217161344,0.1,207.48,207.38,4.81]
[1731217161640,0.1,207.48,207.38,37.43980234]
[1731217161641,32.62980234,207.45,207.38,37.43980234]
[1731217163032,32.62980234,207.47,207.38,37.53980234]
[1731217163243,32.62980234,207.47,207.41,4.81]
[1731217166736,11.88349532,207.46,207.41,4.81]
[1731217166940,32.62980234,207.47,207.41,4.81]
[1731217168430,39.08500234,207.49,207.41,4.81]
[1731217168631,6.4552,207.49,207.43,4.81]
[1731217169560,39.08500234,207.49,207.43,4.81]
[1731217169855,32.62980234,207.47,207.44,4.81]
[1731217170762,32.62980234,207.47,207.41,4.81]
[1731217173456,32.62980234,207.53,207.46,4.81]
[1731217173949,32.62980234,207.51,207.46,4.81]
[1731217174343,32.62980234,207.51,207.44,4.81]
[1731217176036,32.62980234,207.49,207.44,4.81]